fUST/lending_fUST_20240214
["ID","MTS","AMOUNT","RATE_DAILY","PERIOD"]
[313958492,1707858642746,-500.0,0.00037397,14]
[313958493,1707858642755,-500.0,0.00037397,14]
[313958494,1707858642765,-500.0,0.00037397,14]
[313958495,1707858642774,-500.0,0.00037397,14]
[313958496,1707858642782,-500.0,0.00037397,14]
[313958497,1707858642791,-500.0,0.00037397,14]
[313958498,1707858642802,-500.0,0.00037397,14]
[313958500,1707858642811,-502.8682719,0.00037397,14]
[313958501,1707858642820,-504.08520447,0.00037397,14]
[313958502,1707858642829,-500.0,0.00037397,14]
[313958503,1707858642838,-500.0,0.00037397,14]
[313958504,1707858642848,-500.0,0.00037397,14]
[313958505,1707858642857,-351.01811761,0.00037397,14]
[313958506,1707858642868,-500.0,0.00037397,14]
[313958507,1707858642877,-500.0,0.00037397,14]
[313958508,1707858642886,-500.0,0.00037397,14]
[313958509,1707858642895,-500.0,0.00037397,14]
[313958510,1707858642905,-556.82905354,0.00037397,14]
[313958511,1707858642914,-500.0,0.00037397,14]
[313958512,1707858642923,-500.0,0.00037397,14]
[313958513,1707858642934,-500.0,0.00037397,14]
[313958514,1707858642944,-500.0,0.00037397,14]
[313958515,1707858642953,-500.0,0.00037397,14]
[313958516,1707858642962,-500.0,0.00037397,14]
[313958517,1707858642971,-500.0,0.00037397,14]
[313958518,1707858642980,-617.46147544,0.00037397,14]
[313958520,1707858642989,-500.0,0.00037397,14]
[313958521,1707858642998,-500.0,0.00037397,14]
[313958522,1707858643007,-500.0,0.00037397,14]
[313958523,1707858643016,-500.0,0.00037397,14]
[313958524,1707858643026,-500.0,0.00037397,14]
[313958525,1707858643034,-500.0,0.00037397,14]
[313958526,1707858643043,-524.07250563,0.00037397,14]
[313958527,1707858643053,-500.0,0.00037397,14]
[313958528,1707858643062,-514.93028056,0.00037397,14]
[313958529,1707858643072,-500.0,0.00037397,14]
[313958530,1707858643081,-514.0340376,0.00037397,14]
[313958531,1707858643090,-500.0,0.00037397,14]
[313958532,1707858643100,-500.0,0.00037397,14]
[313958533,1707858643109,-500.0,0.00037397,14]
[313958534,1707858643118,-500.0,0.00037397,14]
[313958535,1707858643128,-500.0,0.00037397,14]
[313958536,1707858643137,-500.0,0.00037397,14]
[313958537,1707858643146,-500.0,0.00037397,14]
[313958538,1707858643157,-500.0,0.00037397,14]
[313958539,1707858643167,-500.0,0.00037397,14]
[313958540,1707858643176,-500.0,0.00037397,14]
[313958541,1707858643185,-500.0,0.00037397,14]
[313958542,1707858643194,-505.14617087,0.00037397,14]
[313958543,1707858643205,-1525.31,0.00037397,14]
[313958544,1707858643214,-500.0,0.00037397,14]
[313958545,1707858643225,-513.77439231,0.00037397,14]
[313958546,1707858643237,-500.0,0.00037397,14]
[313958547,1707858643246,-500.0,0.00037397,14]
[313958548,1707858643257,-500.0,0.00037397,14]
[313958549,1707858643266,-500.0,0.00037397,14]
[313958550,1707858643275,-235.04016301,0.00037397,14]
[313958552,1707858643349,-500.0,0.00037397,14]
[313958553,1707858643359,-500.0,0.00037397,14]
[313958554,1707858643369,-500.0,0.00037397,14]
[313958555,1707858643378,-528.6167224,0.00037397,14]
[313958556,1707858643387,-500.0,0.00037397,14]
[313958557,1707858643397,-500.0,0.00037397,14]
[313958558,1707858643406,-500.0,0.00037397,14]
[313958559,1707858643416,-500.0,0.00037397,14]
[313958560,1707858643425,-607.77340214,0.00037397,14]
[313958561,1707858643434,-500.0,0.00037397,14]
[313958562,1707858643443,-500.0,0.00037397,14]
[313958563,1707858643452,-566.45523459,0.00037397,14]
[313958564,1707858643461,-579.68984906,0.00037397,14]
[313958565,1707858643471,-500.0,0.00037397,14]
[313958566,1707858643480,-500.0,0.00037397,14]
[313958567,1707858643489,-500.0,0.00037397,14]
[313958568,1707858643499,-558.38899507,0.00037397,14]
[313958569,1707858643508,-500.0,0.00037397,14]
[313958570,1707858643517,-500.0,0.00037397,14]
[313958571,1707858643526,-571.46,0.00037397,14]
[313958572,1707858643535,-500.0,0.00037397,14]
[313958573,1707858643544,-500.0,0.00037397,14]
[313958574,1707858643553,-498.65233157,0.00037397,14]
[313958575,1707858643562,-500.0,0.00037397,14]
[313958576,1707858643571,-243.46901003,0.00037397,14]
[313958577,1707858643580,-500.0,0.00037397,14]
[313958578,1707858643590,-500.0,0.00037397,14]
[313958579,1707858643599,-500.0,0.00037397,14]
[313958580,1707858643608,-500.0,0.00037397,14]
[313958581,1707858643617,-500.0,0.00037397,14]
[313958582,1707858643626,-500.0,0.00037397,14]
[313958583,1707858643635,-500.0,0.00037397,14]
[313958584,1707858643644,-289.6,0.00037397,14]
[313958585,1707858643653,-500.0,0.00037397,14]
[313958586,1707858643662,-500.0,0.00037397,14]
[313958587,1707858643672,-520.27432797,0.00037397,14]
[313958588,1707858643681,-500.0,0.00037397,14]
[313958589,1707858643690,-500.0,0.00037397,14]
[313958590,1707858643699,-500.0,0.00037397,14]
[313958591,1707858643708,-590.47837984,0.00037397,14]
[313958592,1707858643717,-500.0,0.00037397,14]
[313958593,1707858643726,-538.4407233,0.00037397,14]
[313958594,1707858643735,-500.0,0.00037397,14]
[313958595,1707858643744,-500.0,0.00037397,14]
[313958596,1707858643753,-500.0,0.00037397,14]
[313958597,1707858643762,-500.0,0.00037397,14]
[313958598,1707858643772,-500.0,0.00037397,14]
[313958599,1707858643781,-500.0,0.00037397,14]
[313958600,1707858643790,-182.2,0.00037397,14]
[313958601,1707858643800,-1000.0,0.00037397,2]
[313958602,1707858643809,-1000.0,0.00037397,2]
[313958603,1707858643818,-1000.0,0.00037397,2]
[313958604,1707858643827,-1000.0,0.00037397,2]
[313958605,1707858643837,-500.0,0.00037397,14]
[313958606,1707858643846,-500.0,0.00037397,14]
[313958607,1707858643855,-150.13895615,0.00037397,14]
[313958608,1707858643866,-500.0,0.00037397,14]
[313958609,1707858643876,-515.99616568,0.00037397,14]
[313958610,1707858643885,-552.04755343,0.00037397,14]
[313958611,1707858643895,-500.0,0.00037397,14]
[313958612,1707858643904,-500.0,0.00037397,14]
[313958613,1707858643913,-504.85072762,0.00037397,14]
[313958614,1707858643922,-517.7602585,0.00037397,14]
[313958615,1707858643932,-500.0,0.00037397,14]
[313958616,1707858643942,-500.0,0.00037397,14]
[313958617,1707858643951,-503.53987135,0.00037397,14]
[313958618,1707858643960,-500.0,0.00037397,14]
[313958619,1707858643969,-537.03102554,0.00037397,14]
[313958620,1707858643978,-500.0,0.00037397,2]
[313958621,1707858643987,-500.0,0.00037397,2]
[313958622,1707858643996,-500.0,0.00037397,2]
[313958623,1707858644006,-393.00842315,0.00037397,14]
[313958624,1707858644015,-500.0,0.00037397,14]
[313958625,1707858644024,-500.0,0.00037397,14]
[313958626,1707858644034,-568.8406854,0.00037397,14]
[313958627,1707858644044,-500.0,0.00037397,14]
[313958628,1707858644052,-500.0,0.00037397,14]
[313958629,1707858644062,-500.0,0.00037397,14]
[313958630,1707858644071,-500.0,0.00037397,14]
[313958631,1707858644080,-500.0,0.00037397,14]
[313958632,1707858644089,-504.69574815,0.00037397,14]
[313958633,1707858644097,-500.0,0.00037397,15]
[313958634,1707858644107,-210.23956556,0.00037397,15]
[313958635,1707858644116,-230.2827464,0.00037397,15]
[313958636,1707858644127,-211.83871938,0.00037397,15]
[313958637,1707858644137,-232.60341256,0.00037397,15]
[313958638,1707858644146,-500.0,0.00037397,15]
[313958639,1707858644155,-500.0,0.00037397,15]
[313958640,1707858644164,-500.0,0.00037397,15]
[313958641,1707858644174,-328.87827195,0.00037397,15]
[313958642,1707858644184,-500.0,0.00037397,15]
[313958643,1707858644193,-500.0,0.00037397,15]
[313958644,1707858644202,-500.0,0.00037397,15]
[313958645,1707858644211,-248.79579139,0.00037397,15]
[313958646,1707858644220,-500.0,0.00037397,14]
[313958647,1707858644230,-500.0,0.00037397,14]
[313958648,1707858644239,-505.15087295,0.00037397,14]
[313958649,1707858644248,-500.0,0.00037398,14]
[313958650,1707858644259,-500.0,0.00037398,14]
[313958651,1707858644269,-500.0,0.00037398,14]
[313958652,1707858644278,-500.0,0.00037398,14]
[313958653,1707858644287,-500.0,0.00037398,14]
[313958654,1707858644296,-603.86296977,0.00037398,14]
[313958655,1707858644305,-577.13019246,0.00037398,14]
[313958656,1707858644314,-500.0,0.00037398,14]
[313958657,1707858644323,-263.5781357,0.00037398,14]
[313958658,1707858644332,-535.97705016,0.00037398,14]
[313958659,1707858644341,-519.98864211,0.00037398,14]
[313958660,1707858644350,-612.02290682,0.00037398,14]
[313958661,1707858644360,-503.11275176,0.00037398,14]
[313958662,1707858644369,-619.28904538,0.00037398,14]
[313958663,1707858644379,-500.0,0.00037398,14]
[313958664,1707858644388,-500.0,0.00037398,14]
[313958665,1707858644396,-500.0,0.00037398,14]
[313958666,1707858644406,-500.0,0.00037398,14]
[313958667,1707858644415,-500.0,0.00037398,14]
[313958668,1707858644424,-519.37609633,0.00037398,14]
[313958669,1707858644433,-500.0,0.00037398,14]
[313958670,1707858644442,-500.0,0.00037398,14]
[313958671,1707858644451,-500.0,0.00037398,14]
[313958672,1707858644460,-500.0,0.00037398,14]
[313958673,1707858644469,-500.0,0.00037398,14]
[313958674,1707858644478,-500.0,0.00037398,14]
[313958675,1707858644487,-500.0,0.00037398,14]
[313958676,1707858644495,-500.0,0.00037398,14]
[313958677,1707858644504,-500.0,0.00037398,14]
[313958678,1707858644513,-500.0,0.00037398,14]
[313958679,1707858644522,-500.0,0.00037398,14]
[313958680,1707858644531,-500.0,0.00037398,14]
[313958681,1707858644541,-588.53239273,0.00037398,14]
[313958682,1707858644549,-500.0,0.00037398,14]
[313958683,1707858644558,-500.0,0.00037398,14]
[313958684,1707858644567,-500.0,0.00037398,14]
[313958685,1707858644576,-500.0,0.00037398,14]
[313958686,1707858644585,-500.0,0.00037398,14]
[313958687,1707858644594,-500.0,0.00037398,14]
[313958688,1707858644603,-500.0,0.00037398,14]
[313958689,1707858644612,-500.0,0.00037398,14]
[313958690,1707858644622,-500.0,0.00037398,14]
[313958691,1707858644632,-500.0,0.00037398,14]
[313958692,1707858644641,-539.257994,0.00037398,14]
[313958693,1707858644650,-500.0,0.00037398,14]
[313958694,1707858644659,-500.0,0.00037398,14]
[313958695,1707858644668,-500.0,0.00037398,14]
[313958696,1707858644677,-500.0,0.00037398,14]
[313958697,1707858644686,-500.0,0.00037398,14]
[313958698,1707858644694,-500.0,0.00037398,14]
[313958699,1707858644703,-500.0,0.00037398,14]
[313958700,1707858644713,-500.0,0.00037398,14]
[313958701,1707858644722,-500.0,0.00037398,14]
[313958702,1707858644731,-500.0,0.00037398,14]
[313958703,1707858644740,-427.8,0.00037398,14]
[313958704,1707858644749,-500.0,0.00037398,14]
[313958705,1707858644757,-500.0,0.00037398,14]
[313958706,1707858644766,-515.87802359,0.00037398,14]
[313958707,1707858644775,-500.0,0.00037398,14]
[313958708,1707858644784,-500.0,0.00037398,14]
[313958709,1707858644794,-500.0,0.00037398,14]
[313958710,1707858644803,-500.0,0.00037398,14]
[313958711,1707858644812,-500.0,0.00037398,14]
[313958712,1707858644821,-500.0,0.00037398,14]
[313958713,1707858644830,-500.0,0.00037398,14]
[313958714,1707858644839,-500.0,0.00037398,14]
[313958715,1707858644847,-500.0,0.00037398,14]
[313958716,1707858644856,-500.0,0.00037398,14]
[313958717,1707858644865,-500.0,0.00037398,14]
[313958718,1707858644875,-500.0,0.00037398,14]
[313958719,1707858644884,-527.47094912,0.00037398,14]
[313958720,1707858644893,-500.0,0.00037398,14]
[313958721,1707858644902,-500.0,0.00037398,14]
[313958722,1707858644911,-500.0,0.00037398,14]
[313958723,1707858644920,-500.0,0.00037398,14]
[313958724,1707858644930,-500.0,0.00037398,14]
[313958725,1707858644994,-500.0,0.00037398,14]
[313958726,1707858645011,-500.0,0.00037398,14]
[313958727,1707858645020,-500.0,0.00037398,14]
[313958728,1707858645030,-500.0,0.00037398,14]
[313958729,1707858645039,-500.0,0.00037398,14]
[313958730,1707858645048,-500.0,0.00037398,14]
[313958731,1707858645057,-500.0,0.00037398,14]
[313958732,1707858645067,-501.98964502,0.00037398,14]
[313958733,1707858645076,-207.60230195,0.00037398,14]
[313958734,1707858645085,-500.0,0.00037398,14]
[313958735,1707858645093,-500.0,0.00037398,14]
[313958736,1707858645102,-500.0,0.00037398,14]
[313958737,1707858645112,-500.0,0.00037398,14]
[313958738,1707858645122,-500.0,0.00037398,14]
[313958739,1707858645131,-500.0,0.00037398,14]
[313958740,1707858645140,-500.0,0.00037398,14]
[313958741,1707858645149,-500.0,0.00037398,14]
[313958742,1707858645159,-500.0,0.00037398,14]
[313958743,1707858645168,-500.0,0.00037398,14]
[313958744,1707858645181,-1525.31,0.00037398,14]
[313958745,1707858645191,-500.0,0.00037398,14]
[313958746,1707858645200,-500.0,0.00037398,14]
[313958747,1707858645209,-500.0,0.00037398,14]
[313958748,1707858645218,-503.68428284,0.00037398,14]
[313958749,1707858645227,-500.0,0.00037398,14]
[313958750,1707858645236,-500.0,0.00037398,14]
[313958751,1707858645245,-500.0,0.00037398,14]
[313958752,1707858645257,-500.0,0.00037398,14]
[313958753,1707858645266,-500.0,0.00037398,14]
[313958754,1707858645275,-500.0,0.00037398,14]
[313958755,1707858645285,-500.0,0.00037398,14]
[313958756,1707858645294,-587.0,0.00037398,14]
[313958757,1707858645303,-500.0,0.00037398,14]
[313958758,1707858645312,-500.0,0.00037398,14]
[313958759,1707858645322,-347.04488402,0.00037398,14]
[313958760,1707858645332,-500.0,0.00037398,14]
[313958761,1707858645341,-500.0,0.00037398,14]
[313958762,1707858645350,-500.0,0.00037398,14]
[313958763,1707858645359,-500.0,0.00037398,14]
[313958764,1707858645369,-500.0,0.00037398,14]
[313958765,1707858645379,-500.0,0.00037398,14]
[313958766,1707858645390,-511.47923191,0.00037398,14]
[313958767,1707858645399,-500.0,0.00037398,14]
[313958768,1707858645409,-500.0,0.00037398,14]
[313958769,1707858645419,-500.0,0.00037398,14]
[313958770,1707858645428,-500.0,0.00037398,14]
[313958771,1707858645437,-502.0851851,0.00037398,14]
[313958772,1707858645446,-500.0,0.00037398,14]
[313958773,1707858645455,-410.20384976,0.00037398,14]
[313958774,1707858645465,-500.0,0.00037398,14]
[313958775,1707858645474,-500.0,0.00037398,14]
[313958776,1707858645483,-601.43,0.00037398,14]
[313958777,1707858645493,-1210.34,0.00037399,14]
[313958778,1707858645502,-1210.34,0.00037399,14]
[313958779,1707858645512,-1210.34,0.00037399,14]
[313958780,1707858645521,-1210.34,0.00037399,14]
[313958782,1707858645530,-1210.34,0.00037399,14]
[313958783,1707858645540,-500.0,0.00037399,14]
[313958785,1707858645549,-500.0,0.00037399,14]
[313958786,1707858645558,-500.0,0.00037399,14]
[313958788,1707858645567,-500.0,0.00037399,14]
[313958789,1707858645576,-500.0,0.00037399,14]
[313958790,1707858645586,-500.0,0.00037399,14]
[313958791,1707858645595,-500.0,0.00037399,14]
[313958792,1707858645605,-500.0,0.00037399,14]
[313958793,1707858645614,-500.0,0.00037399,14]
[313958794,1707858645624,-500.0,0.00037399,14]
[313958796,1707858645633,-500.0,0.00037399,14]
[313958797,1707858645642,-500.0,0.00037399,14]
[313958798,1707858645651,-500.0,0.00037399,14]
[313958799,1707858645660,-500.0,0.00037399,14]
[313958800,1707858645669,-500.0,0.00037399,14]
[313958801,1707858645678,-500.0,0.00037399,14]
[313958802,1707858645687,-500.0,0.00037399,14]
[313958803,1707858645697,-510.49911669,0.00037399,14]
[313958804,1707858645706,-500.0,0.00037399,14]
[313958805,1707858645715,-500.0,0.00037399,14]
[313958806,1707858645724,-500.0,0.00037399,14]
[313958807,1707858645733,-500.0,0.00037399,14]
[313958808,1707858645742,-500.0,0.00037399,14]
[313958809,1707858645751,-500.0,0.00037399,14]
[313958810,1707858645760,-500.0,0.00037399,14]
[313958811,1707858645769,-500.0,0.00037399,14]
[313958812,1707858645778,-500.0,0.00037399,14]
[313958813,1707858645787,-500.0,0.00037399,14]
[313958814,1707858645796,-500.0,0.00037399,14]
[313958815,1707858645805,-500.0,0.00037399,14]
[313958816,1707858645815,-500.0,0.00037399,14]
[313958817,1707858645824,-500.0,0.00037399,14]
[313958818,1707858645833,-500.0,0.00037399,14]
[313958819,1707858645842,-500.0,0.00037399,14]
[313958820,1707858645851,-500.0,0.00037399,14]
[313958821,1707858645860,-500.0,0.00037399,14]
[313958822,1707858645869,-500.0,0.00037399,14]
[313958823,1707858645879,-500.0,0.00037399,14]
[313958824,1707858645888,-500.0,0.00037399,14]
[313958825,1707858645897,-500.0,0.00037399,14]
[313958826,1707858645906,-500.0,0.00037399,14]
[313958827,1707858645915,-500.0,0.00037399,14]
[313958828,1707858645924,-500.0,0.00037399,14]
[313958829,1707858645933,-500.0,0.00037399,14]
[313958830,1707858645942,-500.0,0.00037399,14]
[313958831,1707858645950,-500.0,0.00037399,14]
[313958832,1707858645959,-500.0,0.00037399,14]
[313958833,1707858645969,-500.0,0.00037399,14]
[313958834,1707858645979,-500.0,0.00037399,14]
[313958835,1707858645988,-500.0,0.00037399,14]
[313958837,1707858645997,-500.0,0.00037399,14]
[313958838,1707858646006,-500.0,0.00037399,14]
[313958839,1707858646016,-500.0,0.00037399,14]
[313958840,1707858646025,-500.0,0.00037399,14]
[313958841,1707858646034,-500.0,0.00037399,14]
[313958842,1707858646044,-500.0,0.00037399,14]
[313958843,1707858646053,-500.0,0.00037399,14]
[313958844,1707858646062,-500.0,0.00037399,14]
[313958845,1707858646071,-1525.31,0.00037399,14]
[313958846,1707858646081,-500.0,0.00037399,14]
[313958847,1707858646090,-1525.31,0.00037399,14]
[313958848,1707858646099,-1525.31,0.00037399,14]
[313958849,1707858646108,-1525.31,0.00037399,14]
[313958850,1707858646117,-1525.31,0.00037399,14]
[313958851,1707858646127,-1525.31,0.00037399,14]
[313958852,1707858646136,-1525.31,0.00037399,14]
[313958853,1707858646145,-1525.31,0.00037399,14]
[313958854,1707858646155,-1525.31,0.00037399,14]
[313958855,1707858646164,-1525.31,0.00037399,14]
[313958856,1707858646174,-1525.31,0.00037399,14]
[313958857,1707858646184,-1525.39,0.00037399,14]
[313958858,1707858646193,-610.72947573,0.00037399,14]
[313958859,1707858646203,-1746.80219385,0.000374,4]
[313958860,1707858646213,-3746.44530431,0.000374,4]
[313958861,1707858646222,-1018.94351989,0.000374,4]
[313958862,1707858646231,-323.84552651,0.000374,4]
[313958863,1707858646240,-154.8915759,0.000374,2]
[313958864,1707858646250,-154.95351295,0.000374,4]
[313958865,1707858646259,-307.57465096,0.000374,20]
[313958866,1707858646268,-199.73989634,0.000374,4]
[313958867,1707858646277,-155.11786024,0.000374,4]
[313958868,1707858646287,-155.01860223,0.000374,4]
[313958869,1707858646296,-155.02790502,0.000374,4]
[313958870,1707858646305,-155.01705188,0.000374,4]
[313958871,1707858646314,-155.01240099,0.000374,4]
[313958872,1707858646323,-155.01240099,0.000374,4]
[313958873,1707858646332,-155.01860223,0.000374,4]
[313958874,1707858646342,-820.4174629,0.000374,4]
[313958875,1707858646351,-330.4947575,0.000374,4]
[313958876,1707858646360,-214.05113646,0.000374,4]
[313958877,1707858646371,-155.28491729,0.000374,4]
[313958878,1707858646380,-155.0480649,0.000374,4]
[313958879,1707858646389,-161.4945607,0.000374,4]
[313958880,1707858646398,-906.16625216,0.000374,4]
[313958881,1707858646408,-155.20423969,0.000374,4]
[313958882,1707858646417,-155.01240099,0.000374,4]
[313958883,1707858646427,-523.57423326,0.000374,4]
[313958884,1707858646436,-640.35816557,0.000374,4]
[313958885,1707858646445,-317.18249647,0.000374,4]
[313958886,1707858646455,-20929.45735728,0.000374,4]
[313958887,1707858646464,-4495.12556647,0.000374,4]
[313958888,1707858646473,-175.69575442,0.000374,4]
[313958889,1707858646482,-179.25607649,0.000374,4]
[313958890,1707858646550,-155.21391894,0.000374,4]
[313958891,1707858646560,-155.34708733,0.000374,4]
[313958892,1707858646569,-227.00458598,0.000374,4]
[313958893,1707858646579,-155.66315952,0.000374,4]
[313958894,1707858646588,-1297.15038027,0.000374,4]
[313958895,1707858646597,-214.17116512,0.000374,4]
[313958896,1707858646606,-1947.73820568,0.000374,4]
[313958897,1707858646615,-31898.35862176,0.000374,4]
[313958898,1707858646625,-200.99449137,0.000374,4]
[313958899,1707858646634,-180.7763201,0.000374,4]
[313958900,1707858646643,-6304.53229004,0.000374,4]
[313958901,1707858646652,-324.25284351,0.000374,4]
[313958902,1707858646661,-1201.66555398,0.000374,4]
[313958903,1707858646670,-500.0,0.000374,14]
[313958904,1707858646680,-402.62592845,0.000374,14]
[313958905,1707858646689,-500.0,0.000374,14]
[313958906,1707858646699,-502.85144783,0.000374,14]
[313958907,1707858646708,-500.0,0.000374,14]
[313958908,1707858646717,-500.0,0.000374,14]
[313958909,1707858646727,-502.29156867,0.000374,14]
[313958910,1707858646735,-500.0,0.000374,14]
[313958911,1707858646745,-500.81627494,0.000374,14]
[313958912,1707858646755,-500.0,0.000374,14]
[313958913,1707858646764,-500.0,0.000374,14]
[313958914,1707858646773,-500.0,0.000374,14]
[313958915,1707858646782,-502.09393391,0.000374,14]
[313958916,1707858646791,-500.0,0.000374,14]
[313958917,1707858646800,-500.0,0.000374,14]
[313958918,1707858646809,-516.61176842,0.000374,14]
[313958919,1707858646818,-500.0,0.000374,14]
[313958920,1707858646827,-500.51204441,0.000374,14]
[313958921,1707858646836,-390.84923589,0.000374,14]
[313958922,1707858646845,-500.0,0.000374,14]
[313958923,1707858646854,-382.44175673,0.000374,14]
[313958924,1707858646862,-500.0,0.000374,14]
[313958925,1707858646871,-503.48223178,0.000374,14]
[313958926,1707858646880,-500.0,0.000374,14]
[313958927,1707858646889,-500.0,0.000374,14]
[313958928,1707858646898,-524.85225914,0.000374,14]
[313958929,1707858646908,-521.62555231,0.000374,14]
[313958930,1707858646916,-500.0,0.000374,14]
[313958931,1707858646926,-505.57876128,0.000374,14]
[313958932,1707858646934,-500.0,0.000374,14]
[313958933,1707858646943,-500.0,0.000374,14]
[313958934,1707858646952,-613.5414825,0.000374,14]
[313958935,1707858646961,-500.0,0.000374,14]
[313958936,1707858646970,-501.14982379,0.000374,14]
[313958937,1707858646979,-204.50531967,0.000374,14]
[313958938,1707858646988,-520.18760076,0.000374,14]
[313958939,1707858646997,-500.0,0.000374,14]
[313958940,1707858647007,-151.551044,0.000374,2]
[313958941,1707858647016,-348.93640793,0.000374,14]
[313958942,1707858647025,-600.81660012,0.000374,14]
[313958943,1707858647034,-513.53467632,0.000374,14]
[313958944,1707858647043,-500.0,0.000374,14]
[313958945,1707858647052,-500.0,0.000374,14]
[313958946,1707858647061,-500.0,0.000374,14]
[313958947,1707858647070,-510.69423769,0.000374,14]
[313958948,1707858647079,-500.0,0.000374,14]
[313958949,1707858647088,-500.0,0.000374,14]
[313958950,1707858647097,-500.0,0.000374,7]
[313958951,1707858647106,-500.0,0.000374,14]
[313958952,1707858647116,-500.0,0.000374,7]
[313958953,1707858647125,-500.0,0.000374,14]
[313958954,1707858647134,-500.0,0.000374,14]
[313958955,1707858647143,-500.0,0.000374,14]
[313958956,1707858647153,-500.0,0.000374,14]
[313958957,1707858647163,-500.0,0.000374,14]
[313958958,1707858647175,-500.60004555,0.000374,14]
[313958959,1707858647184,-500.0,0.000374,14]
[313958960,1707858647194,-500.0,0.000374,14]
[313958961,1707858647205,-520.00570658,0.000374,14]
[313958962,1707858647214,-500.0,0.000374,14]
[313958963,1707858647223,-500.0,0.000374,14]
[313958964,1707858647232,-509.60725374,0.000374,14]
[313958965,1707858647242,-500.0,0.000374,14]
[313958966,1707858647252,-500.0,0.000374,14]
[313958967,1707858647262,-500.0,0.000374,14]
[313958968,1707858647271,-633.9608995,0.000374,14]
[313958969,1707858647281,-476.74686395,0.000374,14]
[313958970,1707858647291,-500.0,0.000374,14]
[313958971,1707858647301,-500.0,0.000374,14]
[313958972,1707858647310,-500.0,0.000374,14]
[313958973,1707858647319,-500.0,0.000374,14]
[313958974,1707858647329,-500.0,0.000374,14]
[313958975,1707858647338,-503.75541591,0.000374,14]
[313958976,1707858647347,-501.29532055,0.000374,14]
[313958977,1707858647357,-500.0,0.000374,14]
[313958978,1707858647366,-516.44996947,0.000374,14]
[313958979,1707858647376,-500.0,0.000374,14]
[313958980,1707858647385,-534.6466435,0.000374,14]
[313958981,1707858647393,-500.0,0.000374,14]
[313958982,1707858647403,-181.58425299,0.000374,14]
[313958983,1707858647412,-500.0,0.000374,14]
[313958984,1707858647420,-500.0,0.000374,14]
[313958985,1707858647429,-503.50995723,0.000374,14]
[313958986,1707858647439,-590.14622485,0.000374,14]
[313958987,1707858647448,-500.0,0.000374,14]
[313958988,1707858647457,-500.0,0.000374,14]
[313958989,1707858647466,-522.26647642,0.000374,14]
[313958990,1707858647475,-500.0,0.000374,14]
[313958991,1707858647484,-510.6152972,0.000374,14]
[313958992,1707858647494,-500.0,0.000374,14]
[313958993,1707858647503,-617.6638004,0.000374,14]
[313958994,1707858647512,-500.0,0.000374,14]
[313958995,1707858647521,-501.33713712,0.000374,14]
[313958996,1707858647530,-500.0,0.000374,14]
[313958997,1707858647539,-500.0,0.000374,14]
[313958998,1707858647548,-500.0,0.000374,14]
[313958999,1707858647557,-500.0,0.000374,14]